bitfinex/quotes_ETHUSD_20250424
["timestamp","ask_amount","ask_price","bid_price","bid_amount"]
[1745508070734,0.8134,1770.3,1770.0,5.64959641]
[1745508070890,23.0324,1770.5,1770.0,6.42192668]
[1745508071091,23.0324,1770.5,1770.3,5.64851941]
[1745508071422,9.61325036,1770.9,1770.6,5.64761124]
[1745508071423,6.0573,1770.9,1770.6,5.64761124]
[1745508071625,6.0573,1770.9,1770.7,5.64730706]
[1745508071626,5.274,1770.9,1770.7,5.64730706]
[1745508071831,22.216,1771.2,1770.8,0.7785]
[1745508072054,5.271,1771.2,1770.8,0.7785]
[1745508072432,5.271,1771.2,1770.8,6.42547812]
[1745508072731,5.271,1771.2,1770.8,7.06792662]
[1745508073127,5.271,1771.2,1770.8,1.42104781]
[1745508073324,5.271,1771.2,1770.6,0.7785]
[1745508073527,5.271,1771.2,1770.9,5.64656545]
[1745508073713,5.271,1771.2,1771.0,5.64637501]
[1745508073917,0.7833,1771.4,1770.8,0.7569]
[1745508073918,5.271,1771.5,1770.8,0.81336053]
[1745508074155,6.0632,1771.7,1771.2,0.7569]
[1745508074373,5.271,1771.7,1771.3,0.05645272]
[1745508074647,17.7116,1771.9,1771.5,5.6447924]
[1745508074870,6.0765,1772.1,1771.6,0.05643997]
[1745508075015,0.56431402,1772.0,1771.6,0.05643997]
[1745508075218,0.56431402,1772.0,1771.4,6.16401068]
[1745508075522,6.0765,1772.1,1771.6,6.46616508]
[1745508075730,11.7195249,1772.1,1771.6,0.8216]
[1745508076063,5.271,1772.1,1771.7,5.64429523]
[1745508076222,5.271,1772.1,1771.7,5.64409937]
[1745508076424,0.7541,1772.4,1772.0,5.64334085]
[1745508076619,6.0241,1772.7,1772.2,5.6425316]
[1745508076849,6.0241,1772.7,1772.3,0.05641772]
[1745508077016,6.0241,1772.7,1772.1,0.05641642]
[1745508077017,0.7541,1772.2,1772.1,0.05641642]
[1745508077343,5.64413536,1771.8,1771.3,0.7776]
[1745508077663,5.64432316,1771.7,1771.3,0.7776]
[1745508077973,5.64544639,1771.4,1770.9,0.8225]
[1745508078130,5.64519345,1771.5,1770.9,0.8225]
[1745508078321,5.64537114,1771.4,1770.9,0.8225]
[1745508078517,5.64542892,1771.4,1770.9,0.8225]
[1745508078718,9.73572968,1771.7,1770.9,0.8225]
[1745508078965,5.64612263,1771.2,1770.7,0.7685]
[1745508079124,5.64637447,1771.1,1770.7,0.7685]
[1745508079328,5.64655197,1771.0,1770.7,0.7685]
[1745508079536,5.64727402,1770.8,1770.6,0.88244761]
[1745508079719,5.64748404,1770.7,1770.4,0.7685]
[1745508079921,5.64783341,1770.6,1770.1,0.753]
[1745508080461,5.64860866,1770.4,1770.1,0.753]
[1745508080660,5.83378334,1770.6,1769.8,0.8]
[1745508080869,5.64812199,1770.5,1769.8,0.6954]
[1745508081161,10.91693337,1770.6,1769.8,6.34564922]
[1745508081372,10.91695512,1770.6,1769.9,5.64985997]
[1745508081571,5.269,1770.6,1770.0,5.7059973]
[1745508081734,5.64863857,1770.4,1770.1,0.57059973]
[1745508082059,5.269,1770.6,1769.8,9.34562656]
[1745508082060,5.269,1770.6,1770.0,5.64970291]
[1745508082222,5.269,1770.6,1770.0,5.64947939]
[1745508082422,5.269,1770.6,1770.1,5.64935129]
[1745508082719,5.269,1770.6,1769.9,5.64973201]
[1745508082921,5.64840583,1770.5,1770.0,0.5649732]
[1745508083117,12.30862294,1770.6,1770.0,6.21467782]
[1745508083560,5.64812947,1770.5,1770.0,6.21467782]
[1745508083752,12.3086822,1770.6,1770.0,6.21467782]
[1745508084062,6.6606729,1770.6,1770.0,6.21444884]
[1745508084644,6.6606729,1770.6,1770.0,11.86400582]
[1745508084960,6.0558,1771.1,1770.2,0.8302]
[1745508085120,6.0558,1771.1,1770.3,0.0564722]
[1745508085320,5.64816865,1770.5,1769.9,6.45742854]
[1745508085649,5.64805811,1770.6,1770.0,5.64970949]
[1745508085863,5.27,1770.7,1770.0,5.70612882]
[1745508086034,11.74460767,1770.7,1770.1,5.64917363]
[1745508086238,5.64781902,1770.6,1770.0,6.30082996]
[1745508086435,5.64853772,1770.4,1770.0,0.65137288]
[1745508086624,5.64791861,1770.6,1770.0,5.64967593]
[1745508086823,11.29598037,1770.6,1770.0,5.64967593]
[1745508087021,5.6486509,1770.4,1769.6,0.8318]
[1745508087225,5.64954407,1770.1,1769.6,0.8318]
[1745508087470,10.91895924,1770.3,1769.6,7.69618203]
[1745508087675,5.27,1770.3,1769.6,2.04519333]
[1745508087876,5.649279,1770.2,1769.6,12.13338002]
[1745508088025,10.91900318,1770.3,1769.7,5.65052884]
[1745508089029,5.27,1770.3,1769.9,5.65000676]
[1745508089229,5.27,1770.3,1769.9,5.64976611]
[1745508089459,5.27,1770.3,1769.9,11.29965448]
[1745508089639,0.815,1770.6,1769.9,6.77982114]
[1745508089858,10.91783049,1770.6,1770.1,0.8125]
[1745508090180,5.27,1770.6,1770.1,6.46185197]
[1745508090471,5.6482906,1770.5,1770.1,0.8125]
[1745508090630,10.91783732,1770.6,1770.1,0.8125]
[1745508090845,10.91783732,1770.6,1770.1,7.10808353]
[1745508091243,10.91783732,1770.6,1770.1,1.45869528]
[1745508091547,10.91781403,1770.6,1770.1,1.45869528]
[1745508091757,5.64813761,1770.5,1770.1,0.8125]
[1745508091970,10.91781403,1770.6,1770.1,0.8125]
[1745508092283,5.68562651,1770.6,1770.1,0.8125]
[1745508092582,0.8192,1771.7,1771.2,5.64558726]
[1745508092742,1.24050975,1772.0,1771.4,5.64511734]
[1745508092941,6.88398411,1772.0,1771.4,5.64494585]
[1745508093142,0.68839841,1771.9,1771.5,0.05644431]
[1745508093378,5.271,1772.1,1771.3,5.64555438]
[1745508093587,5.271,1772.1,1771.8,5.64369345]
[1745508093742,5.271,1772.1,1771.7,12.053997]
[1745508093945,5.271,1772.1,1771.8,5.64393788]
[1745508094382,5.64222354,1772.4,1771.8,5.70036821]
[1745508094674,12.71292163,1772.4,1771.8,5.64381643]
[1745508094874,7.07059024,1772.4,1771.8,5.64381643]
[1745508095267,7.07059024,1772.4,1771.9,5.64365762]
[1745508095460,7.07059024,1772.4,1771.8,5.64381643]
[1745508095667,7.07059024,1772.4,1771.4,0.805]
[1745508095668,5.6439295,1771.9,1771.4,0.805]
[1745508095968,5.6439295,1771.9,1771.2,5.64571329]
[1745508095969,0.56439295,1771.8,1771.3,5.6454318]
[1745508096178,0.56439295,1771.8,1771.3,5.64536824]
[1745508096380,0.56439295,1771.8,1771.4,5.64525234]
[1745508096675,0.56439295,1771.8,1771.3,5.64542992]
[1745508096876,0.56439295,1771.8,1771.4,5.64524066]
[1745508097078,6.20849281,1771.8,1771.3,5.6455155]
[1745508097283,0.56439295,1771.8,1771.3,5.6455155]
[1745508097499,11.85260256,1771.8,1771.2,5.64568214]
[1745508097787,1.18526026,1771.7,1771.1,0.805]
[1745508097988,0.56439295,1771.8,1771.1,0.805]
[1745508098316,5.6443158,1771.7,1771.1,6.45100003]
[1745508098648,5.6443158,1771.7,1771.2,5.6458808]
[1745508099180,11.28886807,1771.7,1771.1,6.45100003]
[1745508099385,5.64457951,1771.7,1771.1,6.45100003]
[1745508099691,0.62089725,1771.7,1771.2,5.70217533]
[1745508100089,0.62089725,1771.7,1771.3,5.64550601]
[1745508100381,0.62089725,1771.7,1771.2,5.64572555]
[1745508100584,0.62089725,1771.7,1771.2,5.70217533]
[1745508100764,6.26536001,1771.7,1771.2,0.05644978]
[1745508100967,5.64462256,1771.6,1771.1,6.45106176]
[1745508101150,1.37659725,1771.7,1771.1,7.66076355]
[1745508101345,1.37659725,1771.7,1771.3,5.64554737]
[1745508101577,0.7557,1771.7,1771.3,5.64557104]
[1745508102090,6.4000207,1771.7,1771.2,5.64577666]
[1745508102301,6.4000207,1771.7,1771.2,5.645848]
[1745508102461,0.7557,1771.7,1771.1,7.66077099]
[1745508102663,6.40011325,1771.7,1771.2,5.64586682]
[1745508102911,6.28465539,1771.6,1771.1,5.64607763]
[1745508103308,6.28465539,1771.6,1771.0,5.64637021]
[1745508103614,6.28465539,1771.6,1771.0,5.64631663]
[1745508103779,5.64549699,1771.4,1770.9,0.7799]
[1745508104104,7.30115847,1771.4,1770.9,0.7799]
[1745508104285,1.65566148,1771.4,1770.9,6.42671957]
[1745508104582,7.30102717,1771.4,1770.9,6.42671957]
[1745508104913,5.266,1771.5,1770.9,0.83635936]
[1745508105398,5.266,1771.5,1771.2,5.64585964]
[1745508105562,5.266,1771.5,1771.2,5.70231014]
[1745508106507,0.7557,1771.7,1771.2,5.70231014]
[1745508106508,0.7557,1771.7,1771.3,5.6453573]
[1745508107097,5.266,1771.8,1771.4,5.64506557]
[1745508107307,5.266,1771.8,1771.4,11.9358064]
[1745508107470,5.266,1771.8,1771.5,5.64491658]
[1745508107870,5.266,1771.8,1771.4,6.29074083]
[1745508107871,5.266,1771.8,1771.4,6.29078426]
[1745508108192,5.64482515,1771.6,1771.1,0.8184]
[1745508108507,0.7615,1771.5,1771.1,5.64618578]
[1745508108795,0.7615,1771.5,1771.0,5.64630294]
[1745508108961,5.64548108,1771.4,1770.8,6.46553377]
[1745508109163,5.64563418,1771.3,1770.8,7.11188928]
[1745508109364,5.64548108,1771.4,1770.8,12.75888997]
[1745508109574,5.64544783,1771.4,1770.8,7.11186536]
[1745508110004,5.64544783,1771.4,1770.4,0.8184]
[1745508110005,6.40738979,1771.2,1770.4,0.8184]
[1745508110179,5.64684623,1770.9,1770.4,0.8184]
[1745508110382,6.0275,1770.8,1770.2,5.64886678]
[1745508110780,11.67483261,1770.8,1770.2,5.6490792]
[1745508110978,6.0275,1770.8,1770.3,5.64853645]
[1745508111184,6.0275,1770.8,1770.4,0.56485365]
[1745508111912,5.64765491,1770.7,1770.1,6.46764022]
[1745508112077,6.0275,1770.8,1770.3,5.64850211]
[1745508112273,6.0275,1770.8,1770.2,0.05647951]
[1745508112477,6.0275,1770.8,1770.4,5.64823663]
[1745508112709,6.0275,1770.8,1770.3,5.64855569]
[1745508112915,6.0275,1770.8,1770.4,0.56485557]
[1745508113382,6.0275,1770.8,1770.1,6.46764518]
[1745508113577,5.266,1770.8,1770.2,0.05647437]
[1745508113773,5.266,1770.8,1770.1,3.8184]
[1745508114415,5.266,1770.8,1770.1,9.46773489]
[1745508114724,5.266,1770.8,1770.2,0.05647442]
[1745508114902,5.266,1770.8,1770.2,0.44396186]
[1745508115541,6.0299,1771.0,1770.3,5.64860416]
[1745508115858,6.0299,1771.0,1770.3,8.64866242]
[1745508116010,6.0299,1771.0,1770.4,0.8036]
[1745508116195,5.267,1771.0,1770.5,0.05646553]
[1745508116398,5.64496055,1771.5,1770.5,0.05646553]
[1745508116399,5.64506567,1771.5,1770.7,5.6473992]
[1745508116606,5.64507781,1771.5,1770.8,0.05645546]
[1745508116793,4.64317464,1771.4,1770.6,6.45120284]
[1745508116994,5.64559146,1771.3,1770.7,0.51837396]
[1745508117189,9.0863,1771.6,1770.7,0.51837396]
[1745508117190,8.64505228,1771.5,1770.7,0.51837396]
[1745508117519,8.64505228,1771.5,1770.8,0.51837396]
[1745508117520,5.64571323,1771.3,1770.8,0.51837396]
[1745508117717,5.64611301,1771.2,1770.8,0.51837396]
[1745508117922,5.64526769,1771.4,1770.6,0.8036]
[1745508117923,5.64644238,1771.1,1770.6,0.8036]
[1745508118093,5.64675359,1771.0,1770.6,0.8036]
[1745508118823,5.64685398,1770.9,1770.6,0.8036]
[1745508118983,5.64685398,1770.9,1770.4,0.7968]
[1745508119184,5.64685398,1770.9,1770.5,0.51932739]
[1745508119417,5.64675359,1771.0,1770.5,0.51932739]
[1745508119733,5.64526769,1771.4,1770.5,0.51932739]
[1745508119734,6.81924152,1771.7,1770.5,1.3231]
[1745508119892,5.64543614,1771.4,1770.7,5.6472844]
[1745508120220,5.267,1771.6,1770.9,0.7731]
[1745508120221,5.64475302,1771.6,1770.9,0.7731]
[1745508120426,0.761,1771.7,1771.0,5.70275319]
[1745508120427,12.04995962,1771.7,1771.0,5.70275319]
[1745508120599,12.04995962,1771.7,1771.1,0.51928389]
[1745508120600,5.64461703,1771.6,1771.1,0.51928389]
[1745508121012,5.64461811,1771.6,1771.1,0.51928389]
[1745508121323,0.761,1771.7,1771.2,0.51928389]
[1745508121641,11.67417556,1771.9,1771.3,6.47122509]
[1745508121799,5.267,1771.9,1771.4,0.05643798]
[1745508121997,10.91077424,1771.9,1771.4,0.57572187]
[1745508122710,5.64413665,1771.8,1771.5,0.51928389]
[1745508123238,3.0,1772.3,1771.4,0.05643798]
[1745508123239,5.64266413,1772.3,1771.7,6.39927047]
[1745508123404,5.64266413,1772.3,1771.8,0.69635339]
[1745508123610,6.07,1772.4,1771.8,0.69635339]
[1745508123805,0.825,1772.1,1771.4,0.8143]
[1745508124008,5.266,1772.0,1771.4,0.8143]
[1745508124204,5.266,1772.0,1771.5,0.05644111]
[1745508124402,10.90948103,1772.0,1771.5,0.57563922]
[1745508124904,5.266,1772.0,1771.6,0.51919811]
[1745508125108,10.90936052,1772.0,1771.6,1.14122678]
[1745508125310,5.6437036,1771.9,1771.6,0.51919811]
[1745508125614,10.90950687,1772.0,1771.5,0.51919811]
[1745508125931,5.64389853,1771.9,1771.5,0.51919811]
[1745508126132,5.64399262,1771.8,1771.5,0.51919811]
[1745508126441,5.64447892,1771.7,1771.5,0.51919811]
[1745508126740,5.64508935,1771.5,1771.0,0.7707]
[1745508127111,5.64508935,1771.5,1771.0,6.41718543]
[1745508127310,10.91065991,1771.6,1771.0,6.4736055]
[1745508127532,5.64514897,1771.5,1771.0,0.82715148]
[1745508127706,10.91062609,1771.6,1771.1,5.64599246]
[1745508127911,5.64494507,1771.5,1771.2,0.56459925]
[1745508128213,10.91075439,1771.6,1771.0,6.47347962]
[1745508128474,3.0,1771.8,1771.3,5.64534676]
[1745508128678,0.8183,1772.1,1771.6,5.64447569]
[1745508128990,5.64219119,1772.4,1771.8,5.64385463]
[1745508129146,11.72683126,1772.3,1771.8,1.13444814]
[1745508129345,11.72683126,1772.3,1771.7,5.64414516]
[1745508129992,5.64271741,1772.2,1771.7,5.64414516]
[1745508130191,5.64340041,1772.0,1771.5,3.0]
[1745508130350,5.6431823,1772.1,1771.6,0.51930107]
[1745508130351,5.64312362,1772.1,1771.6,0.51930107]
[1745508130545,5.64312362,1772.1,1771.6,6.1639056]
[1745508130745,5.64312362,1772.1,1771.7,0.61639056]
[1745508130978,11.72683081,1772.3,1771.7,6.26063554]
[1745508131185,5.64276388,1772.2,1771.7,6.26063554]
[1745508131367,11.726819,1772.3,1771.7,6.31691588]
[1745508131581,11.726819,1772.3,1771.7,0.61639056]
[1745508131887,5.64304997,1772.1,1771.7,0.61639056]
[1745508132200,11.28636523,1772.1,1771.5,8.64471522]
[1745508132398,5.64304997,1772.1,1771.6,5.64450638]
[1745508132596,5.64286264,1772.2,1771.7,5.64414804]
[1745508133299,5.6430871,1772.1,1771.5,3.0]
[1745508133506,10.90643066,1772.6,1772.0,5.64328927]
[1745508133802,5.265,1772.6,1772.1,0.62075174]
[1745508134099,5.265,1772.6,1772.1,0.56432893]
[1745508134462,5.265,1772.9,1772.4,5.64183025]
[1745508134889,5.265,1772.9,1772.4,5.69827776]
[1745508135199,5.265,1772.9,1772.4,5.64186886]
[1745508135503,5.63964032,1773.2,1772.7,6.39567304]
[1745508135702,11.66187831,1773.3,1772.7,1.3941673]
[1745508135703,6.0226,1773.3,1772.7,1.3941673]
[1745508135859,5.6395598,1773.2,1772.7,7.03522235]
[1745508136065,6.0226,1773.3,1772.7,7.03522235]
[1745508136066,11.66201818,1773.3,1772.7,7.03522235]
[1745508136268,6.0226,1773.3,1772.7,1.3941673]
[1745508136466,11.66200704,1773.3,1772.7,7.0914734]
[1745508136713,6.0226,1773.3,1772.8,0.70914734]
[1745508137017,5.264,1773.3,1772.8,0.7655479]
[1745508137203,5.264,1773.3,1773.1,6.43101313]
[1745508137764,5.264,1773.3,1773.1,0.7913]
[1745508138160,0.8118,1773.7,1773.1,0.7913]
[1745508138161,0.8118,1773.7,1773.2,5.63945675]
[1745508138366,0.8118,1773.7,1773.2,5.63930135]
[1745508138796,0.8118,1773.7,1773.3,5.63919239]
[1745508139128,11.6730735,1774.3,1773.7,5.63782625]
[1745508139284,3.0,1774.2,1773.8,0.05636922]
[1745508139611,5.63645746,1774.2,1773.6,6.41920261]
[1745508139816,6.0369,1774.3,1773.6,6.41920261]
[1745508139817,5.63683201,1774.1,1773.6,6.41921246]
[1745508140119,5.63683201,1774.1,1773.6,0.7811]
[1745508140287,5.63683201,1774.1,1773.6,1.42304639]
[1745508140623,6.0369,1774.3,1773.8,5.63730637]
[1745508140764,16.93,1774.4,1774.1,5.6364517]
[1745508140964,0.7892,1774.5,1773.9,5.6934141]
[1745508140965,11.68663407,1774.5,1773.9,5.6934141]
[1745508141206,11.68663407,1774.5,1773.9,5.63704787]
[1745508141409,0.7778,1774.7,1774.3,5.63600791]
[1745508141578,6.0388,1774.9,1774.5,5.63513417]
[1745508141781,6.0388,1774.9,1774.2,5.63620502]
[1745508141782,11.67309078,1774.9,1774.2,5.63620502]
[1745508142027,11.67310367,1774.9,1774.3,5.63590066]
[1745508142185,0.7778,1774.9,1774.4,5.63563367]
[1745508142389,0.7778,1774.9,1774.5,6.19891295]
[1745508142624,0.7778,1774.9,1774.5,0.56356337]
[1745508142919,5.63332829,1775.2,1774.5,0.56356337]
[1745508142920,0.7778,1775.1,1774.6,5.63491049]
[1745508143081,0.7778,1775.1,1774.6,5.63504874]
[1745508143455,0.7778,1775.1,1774.6,6.81825604]
[1745508143771,0.7778,1775.1,1774.6,1.18338202]
[1745508143988,6.41149996,1775.1,1774.6,6.81832961]
[1745508144215,0.7778,1775.1,1774.6,1.18338202]
[1745508144399,5.6316434,1775.7,1774.6,1.18338202]
[1745508144400,5.259,1775.6,1774.9,0.7954]
[1745508144604,5.63238766,1775.5,1774.9,6.42937962]
[1745508144768,5.63238766,1775.5,1774.9,0.7954]
[1745508144970,5.259,1775.6,1774.9,0.7954]
[1745508144971,5.63274456,1775.4,1774.9,0.7954]
[1745508145199,10.89096464,1775.6,1774.5,5.63536337]
[1745508145200,6.41362297,1775.0,1774.5,0.8217]
[1745508145700,6.41362297,1775.0,1774.5,0.87804411]
[1745508145907,6.41345026,1775.0,1774.5,0.8217]
[1745508146082,6.41351351,1775.0,1774.5,0.8217]
[1745508146406,5.63459206,1774.8,1774.3,0.05634411]
[1745508146573,6.42143938,1774.9,1774.3,11.88056915]
[1745508146904,5.63454712,1774.8,1774.3,0.60878441]
[1745508147068,5.63510414,1774.6,1774.0,7.01884692]
[1745508147273,9.42124221,1774.9,1774.0,7.01884692]
[1745508147274,5.63544466,1774.5,1774.0,7.01886659]
[1745508147601,5.63524558,1774.6,1774.0,7.01879017]
[1745508147806,5.63524558,1774.6,1774.0,7.01875417]
[1745508147964,5.63524558,1774.6,1774.1,5.63662056]
[1745508148167,5.63529373,1774.6,1774.1,0.70186254]
[1745508148368,5.63487026,1774.7,1774.1,5.6365497]
[1745508148587,10.89249215,1774.8,1774.0,1.43836131]
[1745508148793,10.89262738,1774.8,1774.2,5.63614649]
[1745508148993,10.89262738,1774.8,1774.2,5.69250048]
[1745508148994,5.63481299,1774.7,1774.2,5.69250048]
[1745508149210,5.63481299,1774.7,1774.3,0.56925005]
[1745508149404,5.63547842,1774.5,1774.3,0.56925005]
[1745508149603,5.63523976,1774.6,1774.0,1.38200479]
[1745508149911,5.63523976,1774.6,1774.0,7.07516335]
[1745508150107,5.63667662,1774.1,1773.7,0.8008]
[1745508150408,5.63679385,1774.1,1773.7,0.8008]
[1745508150611,5.63679385,1774.1,1773.5,5.63836721]
[1745508150777,0.7647,1774.2,1773.5,5.63836721]
[1745508150778,6.401192,1774.2,1773.6,5.63811953]
[1745508151002,6.401192,1774.2,1773.6,5.63800138]
[1745508151202,5.63669597,1774.1,1773.7,0.56380014]
[1745508151431,5.63679904,1774.1,1773.7,0.56380014]
[1745508151619,5.63679904,1774.1,1773.5,6.43907124]
[1745508151824,3.0,1774.1,1773.4,5.257]
[1745508152022,5.63756652,1773.9,1773.4,5.257]
[1745508152200,5.63782509,1773.8,1773.4,5.257]
[1745508152396,5.63782509,1773.8,1773.4,1.16923578]
[1745508152702,5.63890418,1773.4,1772.9,0.7863]
[1745508152900,5.63858132,1773.5,1772.9,6.42663968]
[1745508153131,5.63891241,1773.4,1772.9,6.42662435]
[1745508153503,5.63891241,1773.4,1772.9,0.7863]
[1745508153737,6.39700474,1773.4,1772.9,0.7863]
[1745508154097,5.258,1773.5,1773.0,5.64010259]
[1745508154297,10.89678612,1773.5,1772.9,7.12561326]
[1745508154541,10.89678612,1773.5,1773.0,5.64012856]
[1745508154758,10.89678612,1773.5,1773.0,5.64002986]
[1745508154759,5.258,1773.5,1773.0,5.64002986]
[1745508154924,10.89669137,1773.5,1773.0,6.91096286]
[1745508155111,5.258,1773.5,1773.1,5.63972639]
[1745508155312,5.258,1773.5,1773.1,5.63971565]
[1745508155514,5.258,1773.5,1773.0,6.91095715]
[1745508155709,10.8967051,1773.5,1773.0,1.270933]
[1745508155949,10.8967051,1773.5,1773.0,6.91108656]
[1745508156133,5.63888918,1773.4,1773.0,1.270933]
[1745508156327,5.63888918,1773.4,1772.9,0.7863]
[1745508156503,5.258,1773.5,1773.1,5.63980775]
[1745508156908,5.258,1773.5,1772.9,0.7863]
[1745508156909,5.63892421,1773.4,1772.9,6.4265879]
[1745508157110,5.258,1773.5,1772.9,6.42666885]
[1745508157342,5.63889726,1773.4,1772.9,6.42655365]
[1745508157547,5.63889726,1773.4,1773.0,0.64265537]
[1745508157548,5.63942405,1773.3,1773.0,0.64265537]
[1745508157714,5.63942405,1773.3,1772.9,0.7863]
[1745508157715,5.63955604,1773.2,1772.9,0.7863]
[1745508157913,6.45912405,1773.3,1772.7,11.71519201]
[1745508158109,0.8197,1773.3,1772.9,5.64045585]
[1745508158313,0.8197,1773.3,1772.9,5.640295]
[1745508158641,0.8197,1773.3,1772.8,5.64058922]
[1745508158840,5.63952569,1773.2,1772.8,1.73558313]
[1745508159042,6.45900317,1773.3,1772.8,7.37627103]
[1745508159662,5.63965201,1773.2,1772.8,1.73558313]
[1745508159826,3.0,1773.2,1772.5,5.6416338]
[1745508160027,5.64021454,1773.0,1772.5,5.6416338]
[1745508160275,5.64019708,1773.0,1772.5,5.6416338]
[1745508160450,5.64019708,1773.0,1772.4,6.42751599]
[1745508160654,5.6405032,1772.9,1772.4,7.0702128]
[1745508160855,5.6405032,1772.9,1772.4,7.07038679]
[1745508161366,10.89901409,1773.1,1772.5,5.64155683]
[1745508161663,10.89901409,1773.1,1772.6,5.64132783]
[1745508161966,18.49296424,1773.1,1772.5,5.6415992]
[1745508162172,5.64022506,1773.0,1772.4,7.07022264]
[1745508162380,5.64068199,1772.9,1772.4,1.4283516]
[1745508162670,5.64033196,1773.0,1772.5,5.64171481]
[1745508162867,7.21286268,1773.1,1772.4,1.4283516]
[1745508163031,5.259,1773.1,1772.7,5.64099221]
[1745508163466,5.259,1773.1,1772.7,5.6408944]
[1745508163661,5.259,1773.1,1772.8,5.64064027]
[1745508163864,5.259,1773.1,1772.7,5.64094107]
[1745508164032,5.259,1773.1,1772.7,11.28185243]
[1745508164231,5.259,1773.1,1772.8,5.64060297]
[1745508164434,5.259,1773.1,1772.9,5.64045832]
[1745508164943,5.259,1773.1,1772.8,5.64074109]
[1745508165268,5.259,1773.1,1772.7,5.64085324]
[1745508165433,5.259,1773.1,1772.9,5.64043476]
[1745508165631,5.259,1773.1,1772.9,6.20447824]
[1745508165835,5.259,1773.1,1772.9,6.20451627]
[1745508166290,10.89727202,1773.6,1773.1,5.63964261]
[1745508166470,10.89727202,1773.6,1773.1,5.63969919]
[1745508166960,10.89727202,1773.6,1773.2,0.7933]
[1745508167162,16.53580218,1773.6,1773.0,6.43314658]
[1745508167480,10.89727202,1773.6,1773.1,0.64331466]
[1745508167791,10.89727202,1773.6,1773.1,5.63969204]
[1745508168595,10.89741127,1773.6,1773.1,5.63969347]
[1745508168762,5.63856798,1773.5,1773.0,6.43327885]
[1745508169093,13.74576758,1773.6,1773.1,5.63982466]
[1745508169296,8.10750244,1773.6,1773.0,0.7933]
[1745508169455,8.10750244,1773.6,1773.0,6.43324288]
[1745508169456,13.74585914,1773.6,1773.0,6.43324288]
[1745508169653,0.7944,1773.8,1773.1,0.69971747]
[1745508169864,0.7944,1773.8,1773.3,5.63901204]
[1745508170070,3.7944,1773.8,1773.4,5.63858975]
[1745508170265,0.8082,1774.0,1773.8,5.63751321]
[1745508170465,0.8082,1774.3,1773.8,5.63738242]
[1745508170702,0.8082,1774.3,1773.7,5.63778053]
[1745508170703,5.63636282,1774.2,1773.7,5.63778053]
[1745508171021,1.20805987,1774.2,1773.7,5.63778053]
[1745508171210,6.84441829,1774.2,1773.7,5.63770172]
[1745508171709,6.84441829,1774.2,1773.7,5.63779896]
[1745508172202,0.8082,1774.3,1773.8,5.63733359]
[1745508172409,5.63667685,1774.1,1773.6,5.63800093]
[1745508172780,6.411813,1774.0,1773.5,5.63839962]
[1745508173217,6.411813,1774.0,1773.5,11.2767883]
[1745508173540,3.0,1773.9,1773.1,0.7675]
[1745508173714,5.63841958,1773.6,1773.0,5.6400031]
[1745508174015,11.27691807,1773.6,1773.0,5.6399644]
[1745508174220,3.0,1773.5,1772.9,0.7775]
[1745508174378,3.0,1773.5,1772.8,5.64058506]
[1745508174379,8.63930728,1773.3,1772.8,5.64079065]
[1745508174788,3.0,1773.3,1772.8,11.28138741]
[1745508175005,3.0,1773.3,1772.8,1.12813874]
[1745508175191,9.45627076,1773.5,1772.9,5.64019843]
[1745508175405,9.45627076,1773.5,1773.0,5.64013406]
[1745508175406,3.8175,1773.5,1773.0,5.64013406]
[1745508175601,3.8175,1773.5,1773.1,5.63980202]
[1745508175785,3.8175,1773.5,1773.0,5.63994036]
[1745508176309,0.8175,1773.5,1773.1,5.63982062]
[1745508176514,0.8175,1773.5,1773.2,5.63949018]
[1745508176717,0.8175,1773.5,1773.1,0.56398206]
[1745508177017,0.8175,1773.5,1772.7,11.32486939]
[1745508177018,5.63954184,1773.2,1772.7,6.43028362]
[1745508177520,3.0,1773.2,1772.8,6.15935394]
[1745508177732,3.8175,1773.5,1773.1,5.63964752]
[1745508177886,3.8175,1773.5,1773.1,5.63960029]
[1745508177887,0.8175,1773.5,1773.1,5.63960029]
[1745508178084,0.8175,1773.5,1773.1,6.20356032]
[1745508178297,6.45617447,1773.5,1773.1,0.56396003]
[1745508178499,6.45617447,1773.5,1773.2,0.51856715]
[1745508178500,0.8175,1773.5,1773.2,0.51856715]
[1745508178707,5.63901351,1773.4,1773.2,0.51856715]
[1745508179115,6.45623636,1773.5,1773.0,6.15872111]
[1745508179489,0.8175,1773.5,1773.0,6.15855202]
[1745508179720,0.8175,1773.5,1773.1,6.15839593]
[1745508179922,6.4560834,1773.5,1773.1,0.51856715]
[1745508180234,6.4560834,1773.5,1773.0,5.63997269]
[1745508180396,6.4560834,1773.5,1773.0,6.76797331]
[1745508180730,5.63903906,1773.4,1772.9,5.64025952]
[1745508180932,0.826,1773.4,1772.4,0.7639]
[1745508181240,3.0,1773.5,1772.0,5.6431042]
[1745508181241,5.64130039,1772.7,1772.0,5.6431042]
[1745508181542,10.90068673,1772.6,1772.1,5.64288056]
[1745508181747,11.2839633,1772.5,1771.9,5.64341141]
[1745508181902,10.90055236,1772.6,1772.2,0.52193729]
[1745508182245,6.4142856,1772.3,1772.2,0.52193729]
[1745508182441,0.7719,1772.3,1771.8,5.64375656]
[1745508182799,6.41430572,1772.3,1771.8,5.64375656]
[1745508182999,0.7719,1772.3,1771.9,5.64342392]
[1745508183198,0.7719,1772.3,1772.1,5.64291106]
[1745508183407,3.781,1772.5,1772.1,5.64290988]
[1745508183607,3.781,1772.5,1772.2,0.52186534]
[1745508183809,0.781,1772.5,1772.2,6.16438525]
[1745508184009,5.26,1772.7,1772.3,5.64219417]
[1745508184209,5.26,1772.7,1772.2,0.05641795]
[1745508184695,10.90111313,1772.7,1772.3,0.52088862]
[1745508185104,5.26,1772.7,1772.3,0.52088862]
[1745508185321,5.26,1772.7,1772.2,11.28511837]
[1745508185508,0.781,1772.8,1772.4,5.64204574]
[1745508185704,5.26,1773.0,1772.6,5.64132384]
[1745508186241,5.26,1773.0,1772.6,5.64120328]
[1745508186448,5.26,1773.0,1772.5,5.64155305]
[1745508186449,10.90018731,1773.0,1772.5,5.64155305]
[1745508186749,10.90018731,1773.0,1772.4,6.41190368]
[1745508186750,10.90018731,1773.0,1772.4,0.77]
[1745508186949,10.90037253,1773.0,1772.4,6.4117707]
[1745508187111,5.26,1773.0,1772.6,5.64126287]
[1745508187306,5.26,1773.0,1772.7,5.64097548]
[1745508187511,5.26,1773.0,1772.7,11.28185782]
[1745508187730,0.7526,1773.3,1772.9,5.64047605]
[1745508187912,6.0126,1773.3,1773.0,5.64003232]